[Event "FIDE WYCC Girls U14 2023"]
[Site "Montesilvano"]
[Date "2023.11.22"]
[Round "9.20"]
[White "Kazhiakhmetova, Yerkenaz"]
[Black "Zadrapova, Amalie"]
[Result "1/2-1/2"]
[ECO "D71"]
[WhiteElo "1218"]
[BlackElo "1753"]
[Annotator "NA RC"]
[PlyCount "95"]
[EventDate "2023.11.13"]
[EventType "swiss"]
[EventCountry "ITA"]
[SourceTitle "playchess.com"]
[Source "ChessBase"]
[SourceQuality "1"]
[TimeControl "40/5400+30:1800+30"]

1. d4 {[%emt 0:00:05]} Nf6 {[%emt 0:00:06]} 2. c4 {[%emt 0:00:05]} g6 {[%emt 0:00:05]} 3. g3 {[%emt 0:00:03]} Bg7 {[%emt 0:00:24]} 4. Bg2 {[%emt 0:00:44]} O-O {[%emt 0:00:43]} 5. Nc3 {[%emt 0:00:19]} d6 {[%emt 0:00:30]} 6. e4 {[%emt 0:00:41]} Nbd7 {[%emt 0:00:57]} 7. Nge2 {[%emt 0:01:43]} e5 {[%emt 0:01:06]} 8. d5 {[%emt 0:02:29]} a5 {[%emt 0:03:25]} 9. a4 {[%emt 0:03:27]} Nc5 {[%emt 0:01:14]} 10. Be3 {[%emt 0:00:17]} Ne8 {[%emt 0:01:39]} 11. O-O {[%emt 0:05:17]} f5 {[%emt 0:05:17]} 12. Qc2 {[%emt 0:04:47]} Bd7 {[%emt 0:16:29]} 13. f4 {[%emt 0:03:54]} Qe7 {[%emt 0:11:12]} 14. Bxc5 {[%emt 0:14:50]} dxc5 {[%emt 0:00:32]} 15. Rae1 {[%emt 0:00:23]} Nd6 {[%emt 0:04:23]} 16. Nb5 {[%emt 0:05:56]} Nxe4 {[%emt 0:09:03]} 17. Bxe4 {[%emt 0:05:02]} fxe4 {[%emt 0:00:34]} 18. Nxc7 {[%emt 0:00:05]} Bxa4 {[%emt 0:01:42]} 19. Qxa4 {[%emt 0:00:34]} Qxc7 {[%emt 0:00:07]} 20. Qc2 {[%emt 0:01:00]} Rae8 {[%emt 0:06:35]} 21. Kh1 {[%emt 0:05:26]} Bh6 {[%emt 0:02:51]} 22. fxe5 {[%emt 0:01:06]} Qxe5 {[%emt 0:01:34]} 23. Rxf8+ {[%emt 0:01:31]} Rxf8 {[%emt 0:01:15]} 24. Nf4 {[%emt 0:00:52]} Bxf4 {[%emt 0:02:10]} 25. Rxe4 {[%emt 0:00:22]} Qh5 {[%emt 0:04:45]} 26. Rxf4 {[%emt 0:11:46]} Rxf4 {[%emt 0:01:21]} 27. gxf4 {[%emt 0:00:06]} Qf3+ {[%emt 0:00:27]} 28. Kg1 {[%emt 0:00:29]} Qxf4 {[%emt 0:01:40]} 29. Qe2 {[%emt 0:01:02]} Qg5+ 30. Kf2 {[%emt 0:01:00]} Qf6+ {[%emt 0:05:27]} 31. Kg2 {[%emt 0:00:37]} Kg7 {[%emt 0:02:02]} 32. Kh1 {[%emt 0:05:23]} h5 {[%emt 0:02:14]} 33. Kg2 {[%emt 0:00:17]} b6 {[%emt 0:07:26]} 34. h3 {[%emt 0:00:38]} Kh6 {[%emt 0:02:44]} 35. Qe3+ {[%emt 0:01:22]} g5 {[%emt 0:00:52]} 36. Qe2 {[%emt 0:01:14]} Kg7 {[%emt 0:02:29]} 37. Kg3 {[%emt 0:02:26]} Qf4+ {[%emt 0:01:21]} 38. Kg2 {[%emt 0:00:10]} Qf6 {[%emt 0:00:12]} 39. Kg3 {[%emt 0:00:08]} h4+ {[%emt 0:00:14]} 40. Kg2 {[%emt 0:00:00]} Qd6 {[%emt 0:00:00]} 41. Qe3 {[%emt 0:02:04]} Kh6 {[%emt 0:08:49]} 42. b3 {[%emt 0:01:45]} Qf6 {[%emt 0:01:37]} 43. Kg1 {[%emt 0:01:39]} Kg6 {[%emt 0:03:28]} 44. Kg2 {[%emt 0:01:46]} Qb2+ {[%emt 0:02:48]} 45. Kf3 {[%emt 0:01:51]} Qf6+ {[%emt 0:00:30]} 46. Kg2 {[%emt 0:00:22]} Kg7 {[%emt 0:09:49]} 47. Qd3 {[%emt 0:00:47]} Qg6 48. Qe2 1/2-1/2

[Event "FIDE WYCC Girls U14 2023"]
[Site "Montesilvano"]
[Date "2023.11.22"]
[Round "9.21"]
[White "Stefan, Iulia-Cristiana"]
[Black "Sodgerelt Naranbold"]
[Result "1/2-1/2"]
[ECO "D02"]
[WhiteElo "1748"]
[BlackElo "1419"]
[Annotator "NA RC"]
[PlyCount "62"]
[EventDate "2023.11.13"]
[EventType "swiss"]
[EventCountry "ITA"]
[SourceTitle "playchess.com"]
[Source "ChessBase"]
[SourceQuality "1"]
[TimeControl "40/5400+30:1800+30"]

1. d4 {[%emt 0:00:03]} d5 {[%emt 0:01:54]} 2. Nf3 {[%emt 0:00:07]} Nf6 {[%emt 0:01:31]} 3. Bf4 {[%emt 0:00:07]} c5 {[%emt 0:01:09]} 4. e3 {[%emt 0:00:10]} Nc6 {[%emt 0:01:12]} 5. Nbd2 {[%emt 0:00:18]} Bg4 {[%emt 0:02:11]} 6. h3 {[%emt 0:04:55]} Bh5 {[%emt 0:00:48]} 7. c3 {[%emt 0:00:38]} e6 {[%emt 0:00:30]} 8. Bd3 {[%emt 0:04:37]} cxd4 {[%emt 0:00:46]} 9. exd4 {[%emt 0:00:16]} Bd6 {[%emt 0:00:07]} 10. Bg5 {[%emt 0:12:02]} h6 {[%emt 0:01:51]} 11. Be3 {[%emt 0:00:38]} Ne7 {[%emt 0:04:33]} 12. O-O {[%emt 0:14:16]} O-O {[%emt 0:00:14]} 13. Qc2 {[%emt 0:01:01]} Bg6 {[%emt 0:06:12]} 14. Ne5 {[%emt 0:02:51]} Bxd3 {[%emt 0:03:29]} 15. Qxd3 {[%emt 0:00:53]} Qc7 {[%emt 0:05:41]} 16. f4 {[%emt 0:05:31]} Nf5 {[%emt 0:04:24]} 17. Bf2 {[%emt 0:02:27]} Be7 {[%emt 0:02:15]} 18. Rae1 {[%emt 0:07:49]} Nd6 {[%emt 0:02:51]} 19. Bh4 {[%emt 0:01:39]} Nfe4 {[%emt 0:04:22]} 20. Bxe7 {[%emt 0:00:32]} Qxe7 {[%emt 0:00:27]} 21. Nxe4 {[%emt 0:00:48]} Nxe4 {[%emt 0:04:32]} 22. f5 {[%emt 0:03:47]} Qg5 {[%emt 0:02:01]} 23. fxe6 {[%emt 0:03:48]} fxe6 {[%emt 0:00:10]} 24. Nf3 {[%emt 0:09:38]} Qg3 {[%emt 0:01:30]} 25. Qe2 {[%emt 0:02:26]} Rf4 {[%emt 0:08:00]} 26. Nd2 {[%emt 0:02:14]} Ng5 {[%emt 0:01:50]} 27. Kh1 {[%emt 0:00:51]} Raf8 {[%emt 0:03:47]} 28. Rxf4 {[%emt 0:01:30]} Rxf4 {[%emt 0:00:08]} 29. Rf1 {[%emt 0:01:47]} Rxf1+ {[%emt 0:05:28]} 30. Nxf1 {[%emt 0:00:58]} Qf4 {[%emt 0:00:07]} 31. Nd2 {[%emt 0:00:35]} Kf7 {[%emt 0:01:29]} 1/2-1/2

[Event "FIDE WYCC Girls U14 2023"]
[Site "Montesilvano"]
[Date "2023.11.22"]
[Round "9.22"]
[White "Mohd Afif, Ainul Mardhiah"]
[Black "Qi, Jenny"]
[Result "1-0"]
[ECO "A13"]
[WhiteElo "1478"]
[BlackElo "1737"]
[Annotator "NA RC"]
[PlyCount "125"]
[EventDate "2023.11.13"]
[EventType "swiss"]
[EventCountry "ITA"]
[SourceTitle "playchess.com"]
[Source "ChessBase"]
[SourceQuality "1"]
[TimeControl "40/5400+30:1800+30"]

1. c4 {[%emt 0:00:19]} e6 {[%emt 0:00:11]} 2. g3 {[%emt 0:00:07]} d5 {[%emt 0:00:21]} 3. Bg2 {[%emt 0:00:07]} dxc4 {[%emt 0:00:31]} 4. Qa4+ {[%emt 0:00:20]} Nd7 {[%emt 0:00:20]} 5. Qxc4 {[%emt 0:00:15]} a6 {[%emt 0:00:54]} 6. d4 {[%emt 0:12:50]} Ngf6 {[%emt 0:09:43]} 7. Nc3 {[%emt 0:01:14]} Be7 {[%emt 0:13:30]} 8. Qb3 {[%emt 0:15:59]} c6 {[%emt 0:08:31]} 9. e4 {[%emt 0:00:56]} Qb6 {[%emt 0:04:51]} 10. Qd1 {[%emt 0:06:54]} O-O {[%emt 0:05:49]} 11. Nge2 {[%emt 0:00:52]} e5 {[%emt 0:09:21]} 12. O-O {[%emt 0:02:19]} exd4 {[%emt 0:06:27]} 13. Nxd4 {[%emt 0:01:30]} Ne5 {[%emt 0:03:25]} 14. Nf5 {[%emt 0:22:31]} Bxf5 {[%emt 0:05:15]} 15. exf5 {[%emt 0:00:16]} Neg4 {[%emt 0:04:26]} 16. h3 {[%emt 0:07:09]} Nxf2 {[%emt 0:08:09]} 17. Rxf2 {[%emt 0:00:24]} Bc5 {[%emt 0:00:59]} 18. Qc2 {[%emt 0:01:33]} Rfe8 {[%emt 0:03:39]} 19. Bg5 {[%emt 0:02:51]} Rad8 {[%emt 0:03:32]} 20. Bxf6 {[%emt 0:04:37]} gxf6 {[%emt 0:00:11]} 21. Ne4 {[%emt 0:00:50]} Bxf2+ {[%emt 0:00:55]} 22. Qxf2 {[%emt 0:00:33]} Qxf2+ {[%emt 0:00:29]} 23. Kxf2 {[%emt 0:00:07]} Kg7 {[%emt 0:00:30]} 24. Rc1 {[%emt 0:01:00]} Rd4 {[%emt 0:00:53]} 25. Ke3 {[%emt 0:01:52]} Rb4 {[%emt 0:01:35]} 26. b3 {[%emt 0:00:53]} Re5 {[%emt 0:00:42]} 27. g4 {[%emt 0:01:45]} h5 {[%emt 0:00:47]} 28. Bf3 {[%emt 0:03:06]} hxg4 {[%emt 0:01:39]} 29. hxg4 {[%emt 0:00:20]} Ra5 {[%emt 0:00:41]} 30. Rc2 {[%emt 0:00:47]} Re5 {[%emt 0:00:42]} 31. Kf4 {[%emt 0:01:52]} Rd5 {[%emt 0:03:27]} 32. Ke3 {[%emt 0:02:18]} Re5 {[%emt 0:00:26]} 33. Rc3 {[%emt 0:02:13]} Ra5 {[%emt 0:01:33]} 34. Rc2 {[%emt 0:00:54]} Re5 {[%emt 0:00:10]} 35. Rg2 {[%emt 0:01:22]} Kh6 {[%emt 0:01:43]} 36. Kd3 {[%emt 0:01:25]} Kg7 {[%emt 0:01:06]} 37. g5 {[%emt 0:01:55]} fxg5 {[%emt 0:00:49]} 38. Rxg5+ {[%emt 0:00:41]} Kf8 {[%emt 0:00:44]} 39. Nc3 {[%emt 0:01:51]} Rf4 {[%emt 0:00:22]} 40. Be4 {[%emt 0:00:00]} f6 {[%emt 0:00:00]} 41. Rh5 {[%emt 0:01:02]} Kg7 {[%emt 0:00:57]} 42. Rh2 {[%emt 0:01:27]} Rg4 {[%emt 0:00:59]} 43. Re2 {[%emt 0:01:39]} Kh6 {[%emt 0:04:53]} 44. Nd1 {[%emt 0:05:19]} Kg7 {[%emt 0:08:53]} 45. Re3 {[%emt 0:02:21]} Rf4 {[%emt 0:05:23]} 46. Nc3 {[%emt 0:02:34]} Rg4 {[%emt 0:02:56]} 47. Ne2 {[%emt 0:02:07]} Ra5 {[%emt 0:01:24]} 48. a4 {[%emt 0:05:12]} Re5 {[%emt 0:01:32]} 49. Nd4 {[%emt 0:01:04]} Kg8 {[%emt 0:02:24]} 50. b4 {[%emt 0:06:07]} a5 {[%emt 0:01:32]} 51. Nf3 {[%emt 0:02:16]} Re8 {[%emt 0:01:38]} 52. b5 {[%emt 0:02:11]} c5 {[%emt 0:01:35]} 53. Nd2 {[%emt 0:03:14]} b6 {[%emt 0:00:57]} 54. Nc4 {[%emt 0:01:01]} Rd8+ {[%emt 0:00:17]} 55. Kc3 {[%emt 0:00:12]} Rb8 {[%emt 0:01:00]} 56. Bd5+ {[%emt 0:00:16]} Kf8 {[%emt 0:01:15]} 57. Re6 {[%emt 0:00:28]} Rg3+ {[%emt 0:00:44]} 58. Kc2 {[%emt 0:00:31]} Kg7 {[%emt 0:00:57]} 59. Re7+ {[%emt 0:00:40]} Kh6 {[%emt 0:00:23]} 60. Rf7 {[%emt 0:00:54]} Kg5 {[%emt 0:00:27]} 61. Nd6 {[%emt 0:00:35]} Kf4 {[%emt 0:00:40]} 62. Rd7 {[%emt 0:00:54]} Re8 {[%emt 0:00:33]} 63. Nxe8 1-0

[Event "FIDE WYCC Girls U14 2023"]
[Site "Montesilvano"]
[Date "2023.11.22"]
[Round "9.23"]
[White "Trunz, Tamila"]
[Black "Mongoljin, Davaadorj"]
[Result "1-0"]
[ECO "C11"]
[WhiteElo "1732"]
[BlackElo "1077"]
[Annotator "NA RC"]
[PlyCount "89"]
[EventDate "2023.11.13"]
[EventType "swiss"]
[EventCountry "ITA"]
[SourceTitle "playchess.com"]
[Source "ChessBase"]
[SourceQuality "1"]
[TimeControl "40/5400+30:1800+30"]

1. e4 {[%emt 0:00:01]} e6 {[%emt 0:00:03]} 2. d4 {[%emt 0:00:05]} d5 {[%emt 0:00:03]} 3. Nc3 {[%emt 0:00:04]} Nf6 {[%emt 0:00:05]} 4. Bg5 {[%emt 0:00:15]} dxe4 {[%emt 0:00:11]} 5. Nxe4 {[%emt 0:01:13]} Be7 {[%emt 0:00:05]} 6. Nxf6+ {[%emt 0:01:37]} Bxf6 {[%emt 0:00:14]} 7. Bxf6 {[%emt 0:01:38]} Qxf6 {[%emt 0:00:02]} 8. Nf3 {[%emt 0:00:52]} c5 {[%emt 0:00:45]} 9. c3 {[%emt 0:02:35]} cxd4 {[%emt 0:03:32]} 10. Nxd4 {[%emt 0:07:04]} O-O {[%emt 0:01:35]} 11. Bd3 {[%emt 0:07:26]} Rd8 {[%emt 0:01:18]} 12. Qh5 {[%emt 0:02:43]} g6 {[%emt 0:03:26]} 13. Qe2 {[%emt 0:00:24]} Nd7 {[%emt 0:05:32]} 14. O-O-O {[%emt 0:01:48]} Nc5 {[%emt 0:02:46]} 15. Bc2 {[%emt 0:02:38]} Bd7 {[%emt 0:15:51]} 16. h4 {[%emt 0:09:49]} e5 {[%emt 0:03:59]} 17. Nf3 {[%emt 0:05:02]} Qf4+ {[%emt 0:10:11]} 18. Kb1 {[%emt 0:01:17]} Bc6 {[%emt 0:02:55]} 19. h5 {[%emt 0:05:43]} Be4 {[%emt 0:08:27]} 20. hxg6 {[%emt 0:02:45]} hxg6 {[%emt 0:03:44]} 21. Bxe4 {[%emt 0:08:03]} Qxe4+ {[%emt 0:01:11]} 22. Qxe4 {[%emt 0:00:16]} Nxe4 {[%emt 0:00:06]} 23. Nxe5 {[%emt 0:01:24]} Nxf2 {[%emt 0:01:30]} 24. Rh8+ {[%emt 0:01:48]} Kxh8 {[%emt 0:00:21]} 25. Nxf7+ {[%emt 0:00:12]} Kg7 {[%emt 0:00:09]} 26. Rxd8 {[%emt 0:00:10]} Rxd8 {[%emt 0:00:01]} 27. Nxd8 {[%emt 0:00:11]} b6 {[%emt 0:00:38]} 28. Nc6 {[%emt 0:04:08]} a5 {[%emt 0:00:55]} 29. Ne5 {[%emt 0:00:56]} g5 {[%emt 0:25:17]} 30. Kc2 {[%emt 0:03:05]} Ne4 {[%emt 0:07:48]} 31. Nc4 {[%emt 0:02:24]} b5 {[%emt 0:01:09]} 32. Nxa5 {[%emt 0:00:56]} Nd6 {[%emt 0:01:00]} 33. Kd3 {[%emt 0:00:55]} Kf6 {[%emt 0:01:08]} 34. c4 {[%emt 0:00:59]} bxc4+ {[%emt 0:00:25]} 35. Nxc4 {[%emt 0:00:11]} Nf5 {[%emt 0:00:21]} 36. a4 {[%emt 0:00:49]} Ke6 {[%emt 0:00:41]} 37. a5 {[%emt 0:06:15]} Kd7 {[%emt 0:00:44]} 38. b4 {[%emt 0:01:27]} Kc6 {[%emt 0:00:20]} 39. Na3 {[%emt 0:01:44]} g4 {[%emt 0:00:54]} 40. Ke4 {[%emt 0:00:00]} Ne7 {[%emt 0:00:00]} 41. Nc2 {[%emt 0:08:13]} Nd5 {[%emt 0:01:35]} 42. Ke5 {[%emt 0:05:40]} Ne7 {[%emt 0:01:58]} 43. Kf4 {[%emt 0:01:13]} Kb5 {[%emt 0:00:31]} 44. Kxg4 {[%emt 0:00:30]} Kc4 {[%emt 0:00:30]} 45. Kh5 1-0

[Event "FIDE WYCC Girls U14 2023"]
[Site "Montesilvano"]
[Date "2023.11.22"]
[Round "9.24"]
[White "Yu, Avery"]
[Black "Petergova, Stella"]
[Result "1/2-1/2"]
[ECO "B36"]
[WhiteElo "1861"]
[BlackElo "1191"]
[Annotator "NA RC"]
[PlyCount "118"]
[EventDate "2023.11.13"]
[EventType "swiss"]
[EventCountry "ITA"]
[SourceTitle "playchess.com"]
[Source "ChessBase"]
[SourceQuality "1"]
[TimeControl "40/5400+30:1800+30"]

1. e4 {[%emt 0:00:01]} c5 {[%emt 0:00:03]} 2. Nf3 {[%emt 0:00:05]} Nc6 {[%emt 0:00:05]} 3. d4 {[%emt 0:00:04]} cxd4 {[%emt 0:00:05]} 4. Nxd4 {[%emt 0:00:03]} g6 {[%emt 0:00:09]} 5. c4 {[%emt 0:00:08]} Nf6 {[%emt 0:00:44]} 6. Nc3 {[%emt 0:00:08]} d6 {[%emt 0:00:15]} 7. f3 {[%emt 0:00:04]} Nxd4 {[%emt 0:00:42]} 8. Qxd4 {[%emt 0:00:06]} Bg7 {[%emt 0:00:06]} 9. Be3 {[%emt 0:00:34]} O-O {[%emt 0:00:25]} 10. Qd2 {[%emt 0:00:15]} Be6 {[%emt 0:01:14]} 11. Be2 {[%emt 0:00:45]} Rc8 {[%emt 0:01:22]} 12. b3 {[%emt 0:01:57]} b5 {[%emt 0:10:15]} 13. Nxb5 {[%emt 0:13:44]} Nxe4 {[%emt 0:02:58]} 14. fxe4 {[%emt 0:05:11]} Bxa1 {[%emt 0:00:09]} 15. O-O {[%emt 0:00:51]} Bg7 {[%emt 0:01:12]} 16. Nxa7 {[%emt 0:02:28]} Ra8 {[%emt 0:00:19]} 17. a4 {[%emt 0:04:22]} Bd7 {[%emt 0:00:42]} 18. Bf3 {[%emt 0:14:41]} Qc7 {[%emt 0:04:14]} 19. Qf2 {[%emt 0:01:57]} Be5 {[%emt 0:01:30]} 20. Bb6 {[%emt 0:03:17]} Qb7 {[%emt 0:01:50]} 21. a5 {[%emt 0:00:56]} Rxa7 {[%emt 0:08:30]} 22. Bxa7 {[%emt 0:00:29]} Qxb3 {[%emt 0:00:16]} 23. c5 {[%emt 0:08:46]} Qb4 {[%emt 0:14:59]} 24. cxd6 {[%emt 0:01:57]} Bxd6 {[%emt 0:03:00]} 25. Bb6 {[%emt 0:02:44]} Rb8 {[%emt 0:07:26]} 26. Kh1 {[%emt 0:01:53]} Be6 {[%emt 0:07:18]} 27. e5 {[%emt 0:10:00]} Bxe5 {[%emt 0:03:43]} 28. Ba7 {[%emt 0:02:15]} Rd8 {[%emt 0:05:30]} 29. a6 {[%emt 0:04:05]} Bc4 {[%emt 0:07:02]} 30. Bc5 {[%emt 0:08:24]} Qb5 {[%emt 0:05:01]} 31. Re1 {[%emt 0:03:15]} Bc3 {[%emt 0:04:19]} 32. Rc1 {[%emt 0:02:22]} Qxa6 {[%emt 0:01:52]} 33. Qc2 {[%emt 0:00:29]} Rc8 {[%emt 0:02:54]} 34. Qxc3 {[%emt 0:01:13]} Rxc5 {[%emt 0:00:32]} 35. Be2 {[%emt 0:00:34]} Qa5 {[%emt 0:00:54]} 36. Qxa5 {[%emt 0:01:51]} Rxa5 {[%emt 0:00:07]} 37. Bxc4 {[%emt 0:00:04]} Kg7 {[%emt 0:00:17]} 38. h3 {[%emt 0:00:49]} Rf5 {[%emt 0:00:35]} 39. Bd3 {[%emt 0:00:52]} Rf4 {[%emt 0:01:26]} 40. Re1 {[%emt 0:00:00]} Kf8 {[%emt 0:00:00]} 41. Kh2 {[%emt 0:03:05]} h5 {[%emt 0:01:47]} 42. Rf1 {[%emt 0:02:04]} Rxf1 {[%emt 0:00:16]} 43. Bxf1 {[%emt 0:00:02]} h4 {[%emt 0:00:33]} 44. Kg1 {[%emt 0:00:06]} Kg7 {[%emt 0:00:46]} 45. Kf2 {[%emt 0:00:04]} g5 {[%emt 0:00:34]} 46. Bd3 {[%emt 0:01:32]} Kf6 {[%emt 0:02:24]} 47. Kf3 {[%emt 0:00:42]} Ke5 {[%emt 0:00:47]} 48. Kg4 {[%emt 0:00:28]} f6 {[%emt 0:00:26]} 49. Ba6 {[%emt 0:01:35]} Ke4 {[%emt 0:00:43]} 50. Bb7+ {[%emt 0:00:18]} Ke5 {[%emt 0:01:17]} 51. Bc8 {[%emt 0:02:18]} Ke4 {[%emt 0:00:57]} 52. Kh5 {[%emt 0:00:56]} Kf4 {[%emt 0:00:59]} 53. Kg6 {[%emt 0:00:59]} Kg3 {[%emt 0:00:29]} 54. Bb7 {[%emt 0:00:27]} g4 {[%emt 0:00:22]} 55. hxg4 {[%emt 0:01:03]} Kxg4 {[%emt 0:00:14]} 56. Bc8+ {[%emt 0:00:51]} Kg3 {[%emt 0:01:13]} 57. Bh3 {[%emt 0:00:19]} Kf4 {[%emt 0:00:32]} 58. Kh5 {[%emt 0:02:33]} Kg3 {[%emt 0:00:12]} 59. Kg6 {[%emt 0:01:11]} Kf4 {[%emt 0:00:56]} 1/2-1/2

[Event "FIDE WYCC Girls U14 2023"]
[Site "Montesilvano"]
[Date "2023.11.22"]
[Round "9.25"]
[White "Wojs, Alicja"]
[Black "Arzur, Maia"]
[Result "1-0"]
[ECO "B91"]
[WhiteElo "1630"]
[BlackElo "1997"]
[Annotator "NA RC"]
[PlyCount "91"]
[EventDate "2023.11.13"]
[EventType "swiss"]
[EventCountry "ITA"]
[SourceTitle "playchess.com"]
[Source "ChessBase"]
[SourceQuality "1"]
[TimeControl "40/5400+30:1800+30"]

1. e4 {[%emt 0:00:01]} c5 {[%emt 0:00:17]} 2. Nf3 {[%emt 0:00:21]} d6 {[%emt 0:00:14]} 3. d4 {[%emt 0:00:22]} cxd4 {[%emt 0:00:10]} 4. Nxd4 {[%emt 0:00:05]} Nf6 {[%emt 0:00:11]} 5. Nc3 {[%emt 0:00:07]} a6 {[%emt 0:00:10]} 6. g3 {[%emt 0:00:15]} e5 {[%emt 0:00:20]} 7. Nde2 {[%emt 0:00:15]} Be7 {[%emt 0:00:53]} 8. Bg2 {[%emt 0:01:58]} b5 {[%emt 0:00:35]} 9. O-O {[%emt 0:02:43]} Bb7 {[%emt 0:03:25]} 10. h3 {[%emt 0:01:13]} Nbd7 {[%emt 0:01:11]} 11. Nd5 {[%emt 0:05:27]} Bxd5 {[%emt 0:03:13]} 12. exd5 {[%emt 0:00:08]} O-O {[%emt 0:01:02]} 13. Be3 {[%emt 0:02:17]} Qc7 {[%emt 0:02:43]} 14. Qd2 {[%emt 0:02:40]} Rfc8 {[%emt 0:04:06]} 15. Rfc1 {[%emt 0:00:31]} Nb6 {[%emt 0:06:38]} 16. b3 {[%emt 0:02:25]} Qb7 {[%emt 0:01:48]} 17. f4 {[%emt 0:07:45]} e4 {[%emt 0:09:59]} 18. Bxb6 {[%emt 0:03:31]} Qxb6+ {[%emt 0:00:03]} 19. Qd4 {[%emt 0:00:20]} Bd8 {[%emt 0:02:07]} 20. Kh2 {[%emt 0:02:13]} Qxd4 {[%emt 0:12:14]} 21. Nxd4 {[%emt 0:00:06]} Rc3 {[%emt 0:00:20]} 22. Nf5 {[%emt 0:05:30]} Bc7 {[%emt 0:02:54]} 23. a4 {[%emt 0:06:01]} b4 {[%emt 0:03:57]} 24. a5 {[%emt 0:03:24]} Re8 {[%emt 0:02:55]} 25. Bf1 {[%emt 0:08:17]} g6 {[%emt 0:07:50]} 26. Nd4 {[%emt 0:00:30]} Ra8 {[%emt 0:01:24]} 27. Bc4 {[%emt 0:02:39]} Bb8 {[%emt 0:02:56]} 28. Nc6 {[%emt 0:08:54]} Ba7 {[%emt 0:02:05]} 29. Nxa7 {[%emt 0:00:30]} Rxa7 {[%emt 0:00:10]} 30. Ra4 {[%emt 0:00:03]} Nd7 {[%emt 0:10:03]} 31. Rxb4 {[%emt 0:02:19]} f5 {[%emt 0:00:54]} 32. Kg2 {[%emt 0:01:59]} h6 {[%emt 0:00:55]} 33. h4 {[%emt 0:02:42]} Kf7 {[%emt 0:01:18]} 34. Be2 {[%emt 0:03:47]} Nc5 {[%emt 0:06:42]} 35. Rc4 {[%emt 0:02:28]} Rxc4 {[%emt 0:00:38]} 36. Bxc4 {[%emt 0:00:07]} g5 {[%emt 0:00:40]} 37. Kf2 {[%emt 0:01:37]} Kf6 {[%emt 0:03:27]} 38. hxg5+ {[%emt 0:02:03]} hxg5 {[%emt 0:00:11]} 39. Rh1 {[%emt 0:00:07]} gxf4 {[%emt 0:02:40]} 40. gxf4 {[%emt 0:00:00]} Kg7 {[%emt 0:00:00]} 41. Ke3 {[%emt 0:03:58]} Ra8 {[%emt 0:06:30]} 42. b4 {[%emt 0:03:53]} Nd7 {[%emt 0:01:06]} 43. Be2 {[%emt 0:02:39]} Nf6 {[%emt 0:01:48]} 44. c4 {[%emt 0:00:42]} Kf7 {[%emt 0:02:39]} 45. Kd4 {[%emt 0:00:15]} Rb8 {[%emt 0:00:47]} 46. b5 {[%emt 0:02:35]} 1-0

[Event "FIDE WYCC Girls U14 2023"]
[Site "Montesilvano"]
[Date "2023.11.22"]
[Round "9.26"]
[White "Zeng, Vera"]
[Black "Toth, Lili"]
[Result "0-1"]
[ECO "E35"]
[WhiteElo "1528"]
[BlackElo "2199"]
[Annotator "RC"]
[PlyCount "110"]
[EventDate "2023.11.13"]
[EventType "swiss"]
[EventCountry "ITA"]
[SourceTitle "playchess.com"]
[Source "ChessBase"]
[SourceQuality "1"]
[TimeControl "40/5400+30:1800+30"]

1. d4 {[%emt 0:00:03]} Nf6 {[%emt 0:00:04]} 2. c4 {[%emt 0:00:08]} e6 {[%emt 0:00:04]} 3. Nc3 {[%emt 0:00:08]} Bb4 {[%emt 0:00:03]} 4. Qc2 {[%emt 0:00:12]} d5 {[%emt 0:03:07]} 5. cxd5 {[%emt 0:00:46]} exd5 {[%emt 0:00:07]} 6. Bg5 {[%emt 0:00:22]} h6 {[%emt 0:00:33]} 7. Bh4 {[%emt 0:01:14]} c5 {[%emt 0:01:41]} 8. dxc5 {[%emt 0:01:16]} g5 {[%emt 0:13:24]} 9. Bg3 {[%emt 0:00:21]} Ne4 {[%emt 0:00:29]} 10. Be5 {[%emt 0:02:18]} f6 {[%emt 0:02:12]} 11. Bxb8 {[%emt 0:00:31]} Bxc3+ {[%emt 0:00:15]} 12. bxc3 {[%emt 0:00:10]} Rxb8 {[%emt 0:00:09]} 13. e3 {[%emt 0:03:42]} Be6 {[%emt 0:25:23]} 14. Bd3 {[%emt 0:02:04]} Nxc5 {[%emt 0:01:37]} 15. Bg6+ {[%emt 0:00:26]} Ke7 {[%emt 0:00:45]} 16. Ne2 {[%emt 0:00:37]} Qa5 {[%emt 0:01:29]} 17. O-O {[%emt 0:01:34]} Qa4 {[%emt 0:09:28]} 18. Qxa4 {[%emt 0:03:46]} Nxa4 {[%emt 0:00:01]} 19. Bc2 {[%emt 0:00:30]} Nxc3 {[%emt 0:03:08]} 20. Nxc3 {[%emt 0:00:27]} Rhc8 {[%emt 0:00:18]} 21. Nxd5+ {[%emt 0:00:52]} Bxd5 {[%emt 0:00:02]} 22. Bf5 {[%emt 0:03:03]} Be6 {[%emt 0:02:58]} 23. Bxe6 {[%emt 0:02:54]} Kxe6 {[%emt 0:00:01]} 24. Rfc1 {[%emt 0:00:36]} b5 {[%emt 0:00:35]} 25. Rab1 {[%emt 0:05:32]} b4 {[%emt 0:01:19]} 26. Kf1 {[%emt 0:01:20]} a5 {[%emt 0:00:37]} 27. Ke2 {[%emt 0:00:23]} h5 {[%emt 0:06:14]} 28. Rxc8 {[%emt 0:03:39]} Rxc8 {[%emt 0:00:02]} 29. Kd2 {[%emt 0:00:20]} h4 {[%emt 0:08:26]} 30. Rc1 {[%emt 0:03:37]} Rxc1 {[%emt 0:02:28]} 31. Kxc1 {[%emt 0:00:06]} Kd5 {[%emt 0:00:06]} 32. Kc2 {[%emt 0:01:50]} Kc4 {[%emt 0:00:16]} 33. g3 {[%emt 0:03:33]} hxg3 {[%emt 0:04:00]} 34. fxg3 {[%emt 0:01:49]} g4 {[%emt 0:00:05]} 35. Kb2 {[%emt 0:19:27]} a4 {[%emt 0:00:34]} 36. Kc2 {[%emt 0:00:14]} b3+ {[%emt 0:00:21]} 37. axb3+ {[%emt 0:00:15]} axb3+ {[%emt 0:00:02]} 38. Kb2 {[%emt 0:00:14]} f5 {[%emt 0:01:01]} 39. Kb1 {[%emt 0:00:21]} Kd3 {[%emt 0:00:30]} 40. Kb2 {[%emt 0:00:00]} Kxe3 {[%emt 0:00:00]} 41. Kxb3 {[%emt 0:00:35]} Kf3 {[%emt 0:00:14]} 42. Kc4 {[%emt 0:00:20]} Kg2 {[%emt 0:00:08]} 43. Kd4 {[%emt 0:00:24]} Kxh2 {[%emt 0:00:11]} 44. Ke5 {[%emt 0:00:15]} Kxg3 {[%emt 0:00:03]} 45. Kxf5 {[%emt 0:00:12]} Kf3 {[%emt 0:00:04]} 46. Ke5 {[%emt 0:00:11]} g3 {[%emt 0:00:02]} 47. Kf5 {[%emt 0:00:09]} g2 {[%emt 0:00:04]} 48. Kf6 {[%emt 0:00:11]} g1=Q {[%emt 0:00:06]} 49. Ke5 {[%emt 0:00:07]} Qc5+ {[%emt 0:00:09]} 50. Ke6 {[%emt 0:00:11]} Ke4 {[%emt 0:00:16]} 51. Kd7 {[%emt 0:00:13]} Qb6 {[%emt 0:00:03]} 52. Kc8 {[%emt 0:00:15]} Qa7 {[%emt 0:00:04]} 53. Kd8 {[%emt 0:00:11]} Ke5 {[%emt 0:00:10]} 54. Ke8 {[%emt 0:00:13]} Ke6 {[%emt 0:00:05]} 55. Kf8 {[%emt 0:00:06]} Qf7# {[%emt 0:00:03]} 0-1